fUSD/lending_fUSD_20250930
["ID","MTS","AMOUNT","RATE_DAILY","PERIOD"]
[388515088,1759227063997,-500.0,0.00019486,2]
[388515089,1759227064006,-184.864916,0.00019486,2]
[388515090,1759227064015,-500.0,0.00019486,2]
[388515091,1759227064024,-500.0,0.00019486,2]
[388515092,1759227064034,-500.0,0.00019486,2]
[388515093,1759227064043,-1282.87,0.00019486,2]
[388515094,1759227064052,-151.0,0.00019486,2]
[388515095,1759227064063,-151.0,0.00019486,2]
[388515096,1759227064072,-1214.55,0.00019486,2]
[388515097,1759227064082,-500.0,0.00019486,2]
[388515098,1759227064092,-500.0,0.00019486,2]
[388515099,1759227064100,-500.0,0.00019486,2]
[388515100,1759227064109,-151.0,0.00019486,2]
[388515101,1759227064118,-500.0,0.00019486,2]
[388515102,1759227064128,-500.0,0.00019486,2]
[388515103,1759227064138,-151.0,0.00019486,2]
[388515104,1759227064148,-151.0,0.00019486,2]
[388515105,1759227064157,-169.320197,0.00019486,2]
[388515106,1759227064166,-288.94058,0.00019486,2]
[388515107,1759227064175,-169.320197,0.00019486,2]
[388515108,1759227064184,-151.0,0.00019486,2]
[388515109,1759227064194,-169.320197,0.00019486,2]
[388515110,1759227064203,-500.0,0.00019486,2]
[388515111,1759227064212,-169.320197,0.00019486,2]
[388515112,1759227064221,-1015.31,0.00019486,2]
[388515113,1759227064230,-500.0,0.00019486,2]
[388515114,1759227064239,-500.0,0.00019486,2]
[388515115,1759227064248,-892.83,0.00019486,2]
[388515116,1759227064258,-500.0,0.00019486,2]
[388515117,1759227064268,-500.0,0.00019486,2]
[388515118,1759227064277,-254.822242,0.00019486,2]
[388515119,1759227064287,-500.0,0.00019486,2]
[388515120,1759227064296,-254.822242,0.00019486,2]
[388515121,1759227064305,-500.0,0.00019486,2]
[388515122,1759227064314,-2265.98,0.00019486,2]
[388515123,1759227064323,-254.822242,0.00019486,2]
[388515124,1759227064332,-254.822242,0.00019486,2]
[388515125,1759227064341,-500.0,0.00019486,2]
[388515126,1759227064350,-2070.31,0.00019486,2]
[388515127,1759227064359,-500.0,0.00019486,2]
[388515128,1759227064370,-968.6,0.00019486,2]
[388515129,1759227064379,-529.97,0.00019486,2]
[388515130,1759227064388,-500.0,0.00019486,2]
[388515131,1759227064397,-691.29,0.00019486,2]
[388515132,1759227064406,-691.29,0.00019486,2]
[388515133,1759227064415,-200.7153318,0.00019486,2]
[388515134,1759227064424,-151.0,0.00019486,2]
[388515135,1759227064433,-151.0,0.00019486,2]
[388515136,1759227064444,-151.0,0.00019486,2]
[388515137,1759227064453,-151.0,0.00019486,2]
[388515138,1759227064462,-151.0,0.00019486,2]
[388515139,1759227064471,-235.54482,0.00019486,2]
[388515140,1759227064479,-1764.65,0.00019486,2]
[388515141,1759227064488,-500.0,0.00019486,2]
[388515142,1759227064499,-1601.91,0.00019486,2]
[388515143,1759227064508,-151.0,0.00019486,2]
[388515144,1759227064517,-157.648966,0.00019486,2]
[388515145,1759227064526,-157.648966,0.00019486,2]
[388515146,1759227064535,-500.0,0.00019486,2]
[388515147,1759227064544,-157.648966,0.00019486,2]
[388515148,1759227064553,-157.648966,0.00019486,2]
[388515149,1759227064563,-685.26,0.00019486,2]
[388515150,1759227064572,-500.0,0.00019486,2]
[388515151,1759227064581,-500.0,0.00019486,2]
[388515152,1759227064591,-778.47,0.00019486,2]
[388515153,1759227064600,-286.453146,0.00019486,2]
[388515154,1759227064609,-286.453146,0.00019486,2]
[388515155,1759227064619,-286.453146,0.00019486,2]
[388515156,1759227064629,-1622.01,0.00019486,2]
[388515157,1759227064638,-909.69,0.00019486,2]
[388515158,1759227064648,-151.0,0.00019486,2]
[388515159,1759227064657,-162.187437,0.00019486,2]
[388515160,1759227064674,-162.187437,0.00019486,2]
[388515161,1759227064683,-162.187437,0.00019486,2]
[388515162,1759227064694,-644.51,0.00019486,2]
[388515163,1759227064704,-162.18744,0.00019486,2]
[388515164,1759227064714,-1566.16,0.00019486,2]
[388515165,1759227064724,-1015.88,0.00019486,2]
[388515166,1759227064733,-286.453146,0.00019486,2]
[388515167,1759227064743,-151.0,0.00019486,2]
[388515168,1759227064753,-938.26,0.00019486,2]
[388515169,1759227064763,-151.0,0.00019486,2]
[388515170,1759227064772,-500.0,0.00019486,2]
[388515171,1759227064782,-500.0,0.00019486,2]
[388515172,1759227064792,-500.0,0.00019486,2]
[388515173,1759227064802,-740.41,0.00019486,2]
[388515174,1759227064811,-740.41,0.00019486,2]
[388515175,1759227064821,-1253.4,0.00019486,2]
[388515176,1759227064830,-176.858792,0.00019486,2]
[388515177,1759227064840,-583.04,0.00019486,2]
[388515178,1759227064850,-176.858792,0.00019486,2]
[388515179,1759227064860,-176.858792,0.00019486,2]
[388515180,1759227064870,-176.858794,0.00019486,2]
[388515181,1759227064880,-518.44,0.00019486,2]
[388515182,1759227064890,-500.0,0.00019486,2]
[388515183,1759227064900,-1583.75,0.00019486,2]
[388515184,1759227064909,-500.0,0.00019486,2]
[388515185,1759227064919,-1265.02,0.00019486,2]
[388515186,1759227064929,-401.90586367,0.00019486,2]
[388515187,1759227064939,-500.0,0.00019486,2]
[388515188,1759227064950,-500.0,0.00019486,2]
[388515189,1759227064960,-500.0,0.00019486,2]
[388515190,1759227064970,-500.0,0.00019486,2]
[388515191,1759227064980,-151.0,0.00019486,2]
[388515192,1759227064990,-151.0,0.00019486,2]
[388515193,1759227064999,-779.5,0.00019486,2]
[388515194,1759227065010,-774.89,0.00019486,2]
[388515195,1759227065019,-934.87,0.00019486,2]
[388515196,1759227065029,-983.25,0.00019486,2]
[388515197,1759227065039,-617.19133849,0.00019486,2]
[388515198,1759227065048,-151.0,0.00019486,2]
[388515199,1759227065065,-1295.44,0.00019486,2]
[388515200,1759227065075,-151.0,0.00019486,2]
[388515201,1759227065084,-191.925928,0.00019486,2]
[388515202,1759227065095,-191.925928,0.00019486,2]
[388515203,1759227065104,-191.925928,0.00019486,2]
[388515204,1759227065114,-539.09,0.00019486,2]
[388515205,1759227065124,-500.0,0.00019486,2]
[388515206,1759227065133,-241.69298819,0.00019486,2]
[388515207,1759227065143,-151.0,0.00019486,2]
[388515208,1759227065152,-500.0,0.00019486,2]
[388515209,1759227065162,-151.0,0.00019486,2]
[388515210,1759227065172,-151.0,0.00019486,2]
[388515211,1759227065181,-1439.63,0.00019486,2]
[388515212,1759227065191,-500.0,0.00019486,2]
[388515213,1759227065201,-478.237203,0.00019486,2]
[388515214,1759227065210,-237.35673649,0.00019486,2]
[388515217,1759227067791,-304.337494,0.00019464,2]
[388515218,1759227067808,-4563.552506,0.00019464,2]
[388515219,1759227067820,-155.265988,0.00019483,2]
[388515220,1759227067830,-155.265988,0.00019483,2]
[388515221,1759227067839,-155.265988,0.00019483,2]
[388515222,1759227067848,-155.265988,0.00019483,2]
[388515223,1759227067857,-155.265988,0.00019483,2]
[388515224,1759227067867,-155.265988,0.00019483,2]
[388515225,1759227067877,-500.0,0.00019483,2]
[388515226,1759227067887,-5638.61,0.00019484,2]
[388515227,1759227067897,-155.265988,0.00019484,2]
[388515228,1759227067906,-155.265988,0.00019484,2]
[388515229,1759227067916,-240.88046651,0.00019486,2]
[388515230,1759227067925,-500.0,0.00019486,2]
[388515231,1759227067935,-478.237203,0.00019486,2]
[388515232,1759227067945,-478.237203,0.00019486,2]
[388515233,1759227067955,-403.35435663,0.00019486,2]
[388515234,1759227067965,-500.0,0.00019486,2]
[388515235,1759227067974,-151.0,0.00019486,2]
[388515236,1759227067984,-500.0,0.00019486,2]
[388515237,1759227067994,-500.0,0.00019486,2]
[388515238,1759227068003,-151.0,0.00019486,2]
[388515239,1759227068013,-500.0,0.00019486,2]
[388515240,1759227068023,-201.207258,0.00019486,2]
[388515241,1759227068033,-500.0,0.00019486,2]
[388515242,1759227068042,-500.0,0.00019486,2]
[388515243,1759227068052,-201.207258,0.00019486,2]
[388515244,1759227068062,-201.207258,0.00019486,2]
[388515245,1759227068074,-1740.54,0.00019486,2]
[388515246,1759227068084,-500.0,0.00019486,2]
[388515247,1759227068093,-201.207263,0.00019486,2]
[388515248,1759227068103,-431.84425249,0.00019486,2]
[388515249,1759227068116,-727.97597751,0.00019486,2]
[388515250,1759227068127,-1159.82023,0.00019486,2]
[388515251,1759227068136,-500.0,0.00019486,2]
[388515252,1759227068146,-557.1,0.00019486,2]
[388515253,1759227068156,-1159.82023,0.00019486,2]
[388515254,1759227068166,-1159.820222,0.00019486,2]
[388515255,1759227068176,-25.90849419,0.00019486,2]
[388515256,1759227068189,-2008.43150581,0.00019486,2]
[388515257,1759227068199,-500.0,0.00019486,2]
[388515258,1759227068210,-1386.13,0.00019486,2]
[388515259,1759227068220,-500.0,0.00019486,2]
[388515260,1759227068232,-500.0,0.00019486,2]
[388515261,1759227068243,-893.52,0.00019486,2]
[388515262,1759227068256,-2636.45,0.00019486,2]
[388515263,1759227068267,-893.52,0.00019486,2]
[388515264,1759227068278,-500.0,0.00019486,2]
[388515265,1759227068289,-500.0,0.00019486,2]
[388515266,1759227068299,-500.0,0.00019486,2]
[388515267,1759227068309,-500.0,0.00019486,2]
[388515268,1759227068321,-3229.62,0.00019486,2]
[388515269,1759227068331,-500.0,0.00019486,2]
[388515270,1759227068341,-500.0,0.00019486,2]
[388515271,1759227068351,-151.0,0.00019486,2]
[388515272,1759227068361,-151.0,0.00019486,2]
[388515273,1759227068373,-151.0,0.00019486,2]
[388515274,1759227068384,-151.0,0.00019486,2]
[388515275,1759227068395,-151.0,0.00019486,2]
[388515276,1759227068404,-500.0,0.00019486,2]
[388515277,1759227068414,-648.58,0.00019486,2]
[388515278,1759227068425,-1094.21,0.00019486,2]
[388515279,1759227068435,-33.06233814,0.00019486,2]
[388515280,1759227068529,-2769.84766186,0.00019486,2]
[388515281,1759227068540,-500.0,0.00019486,2]
[388515282,1759227068553,-670.33,0.00019486,2]
[388515283,1759227068563,-500.0,0.00019486,2]
[388515284,1759227068574,-1267.75912,0.00019486,2]
[388515285,1759227068585,-500.0,0.00019486,2]
[388515286,1759227068594,-500.0,0.00019486,2]
[388515287,1759227068604,-1172.0,0.00019486,2]
[388515288,1759227068614,-500.0,0.00019486,2]
[388515289,1759227068624,-500.0,0.00019486,2]
[388515290,1759227068635,-225.060142,0.00019486,2]
[388515291,1759227068645,-541.74322209,0.00019486,2]
[388515292,1759227068654,-225.060142,0.00019486,2]
[388515293,1759227068664,-225.060142,0.00019486,2]
[388515294,1759227068675,-160.581577,0.00019486,2]
[388515295,1759227068685,-1291.94,0.00019486,2]
[388515296,1759227068695,-225.060138,0.00019486,2]
[388515297,1759227068705,-2502.19,0.00019486,2]
[388515298,1759227068715,-151.0,0.00019486,2]
[388515299,1759227068725,-1041.52,0.00019486,2]
[388515300,1759227068735,-1001.41,0.00019486,2]
[388515301,1759227068745,-1250.24,0.00019486,2]
[388515302,1759227068755,-3106.92,0.00019486,2]
[388515303,1759227068765,-3106.92,0.00019486,2]
[388515304,1759227068774,-1219.04,0.00019486,2]
[388515305,1759227068784,-500.0,0.00019486,2]
[388515306,1759227068794,-514.37,0.00019486,2]
[388515307,1759227068805,-3045.55,0.00019486,2]
[388515308,1759227068816,-1785.01,0.00019486,2]
[388515309,1759227068826,-500.0,0.00019486,2]
[388515310,1759227068836,-500.0,0.00019486,2]
[388515311,1759227068846,-500.0,0.00019486,2]
[388515312,1759227068855,-500.0,0.00019486,2]
[388515313,1759227068865,-3164.41,0.00019486,2]
[388515314,1759227068876,-500.0,0.00019486,2]
[388515315,1759227068887,-1838.48,0.00019486,2]
[388515316,1759227068897,-500.0,0.00019486,2]
[388515317,1759227068907,-582.71,0.00019486,2]
[388515318,1759227068917,-500.0,0.00019486,2]
[388515319,1759227068927,-500.0,0.00019486,2]
[388515320,1759227068936,-500.0,0.00019486,2]
[388515321,1759227068946,-500.0,0.00019486,2]
[388515322,1759227068955,-798.55,0.00019486,2]
[388515323,1759227068964,-538.97549551,0.00019486,2]
[388515324,1759227068974,-633.38,0.00019486,2]
[388515325,1759227068984,-500.0,0.00019486,2]
[388515326,1759227068994,-1903.08,0.00019486,2]
[388515327,1759227069004,-500.0,0.00019486,2]
[388515328,1759227069013,-888.26,0.00019486,2]
[388515329,1759227069024,-500.0,0.00019486,2]
[388515330,1759227069033,-1189.93,0.00019486,2]
[388515331,1759227069044,-500.0,0.00019486,2]
[388515332,1759227069054,-500.0,0.00019486,2]
[388515333,1759227069067,-500.0,0.00019486,2]
[388515334,1759227069078,-706.26,0.00019486,2]
[388515335,1759227069088,-1367.54,0.00019486,2]
[388515336,1759227069099,-500.0,0.00019486,2]
[388515337,1759227069108,-1404.24,0.00019486,2]
[388515338,1759227069118,-500.0,0.00019486,2]
[388515339,1759227069128,-1230.0,0.00019486,2]
[388515340,1759227069138,-1230.0,0.00019486,2]
[388515341,1759227069148,-500.0,0.00019486,2]
[388515342,1759227069157,-1230.0,0.00019486,2]
[388515343,1759227069167,-151.0,0.00019486,2]
[388515344,1759227069177,-1246.71709638,0.00019486,2]
[388515345,1759227069186,-151.0,0.00019486,2]
[388515346,1759227069196,-151.0,0.00019486,2]
[388515347,1759227069205,-151.0,0.00019486,2]
[388515348,1759227069215,-500.0,0.00019486,2]
[388515349,1759227069224,-818.0,0.00019486,2]
[388515350,1759227069235,-151.0,0.00019486,2]
[388515351,1759227069244,-151.0,0.00019486,2]
[388515352,1759227069255,-818.0,0.00019486,2]
[388515353,1759227069266,-515.24,0.00019486,2]
[388515354,1759227069276,-151.0,0.00019486,2]
[388515355,1759227069286,-151.0,0.00019486,2]
[388515356,1759227069297,-818.0,0.00019486,2]
[388515357,1759227069307,-152.75172832,0.00019486,2]
[388515358,1759227069317,-151.0,0.00019486,2]
[388515359,1759227069327,-818.0,0.00019486,2]
[388515360,1759227069336,-152.47907664,0.00019486,2]
[388515361,1759227069345,-818.0,0.00019486,2]
[388515362,1759227069356,-818.0,0.00019486,2]
[388515363,1759227069366,-500.0,0.00019486,2]
[388515364,1759227069380,-818.0,0.00019486,2]
[388515365,1759227069390,-500.0,0.00019486,2]
[388515366,1759227069400,-500.0,0.00019486,2]
[388515367,1759227069411,-500.0,0.00019486,2]
[388515368,1759227069420,-152.0,0.00019486,2]
[388515369,1759227069429,-151.0,0.00019486,2]
[388515370,1759227069439,-1319.74,0.00019486,2]
[388515371,1759227069451,-1331.87,0.00019487,2]
[388515372,1759227069460,-645.65,0.00019487,2]
[388515374,1759227069470,-945.27,0.00019487,2]
[388515375,1759227069479,-500.0,0.00019487,2]
[388515376,1759227069489,-848.19,0.00019487,2]
[388515377,1759227069499,-1144.08,0.00019487,2]
[388515378,1759227069508,-1394.29,0.00019487,2]
[388515379,1759227069517,-1587.31,0.00019487,2]
[388515380,1759227069528,-704.16,0.00019487,2]
[388515381,1759227069537,-1903.3,0.00019487,2]
[388515382,1759227069547,-977.48,0.00019487,2]
[388515383,1759227069556,-500.0,0.00019487,2]
[388515384,1759227069566,-1444.01,0.00019487,2]
[388515385,1759227069575,-615.24,0.00019487,2]
[388515386,1759227069584,-2411.99,0.00019487,2]
[388515387,1759227069594,-706.78,0.00019487,2]
[388515388,1759227069603,-2125.48,0.00019487,2]
[388515389,1759227069613,-1877.11,0.00019487,2]
[388515390,1759227069622,-3524.15,0.00019487,2]
[388515391,1759227069632,-1504.36,0.00019487,2]
[388515392,1759227069641,-3484.97,0.00019487,2]
[388515393,1759227069651,-500.0,0.00019487,2]
[388515394,1759227069661,-545.53,0.00019487,2]
[388515395,1759227069670,-708.19,0.00019487,2]
[388515396,1759227069680,-1798.74,0.00019487,2]
[388515397,1759227069690,-1052.1,0.00019487,2]
[388515398,1759227069699,-1239.52,0.00019487,2]
[388515399,1759227069710,-500.0,0.00019487,2]
[388515401,1759227069719,-1130.94,0.00019487,2]
[388515402,1759227069729,-545.85,0.00019487,2]
[388515403,1759227069739,-2639.34,0.00019487,2]
[388515404,1759227069748,-500.0,0.00019487,2]
[388515405,1759227069758,-1671.9,0.00019487,2]
[388515406,1759227069767,-500.0,0.00019487,2]
[388515407,1759227069777,-500.0,0.00019487,2]
[388515408,1759227069792,-1254.57,0.00019487,2]
[388515409,1759227069804,-781.17,0.00019487,2]
[388515410,1759227069814,-500.0,0.00019487,2]
[388515411,1759227069824,-500.0,0.00019487,2]
[388515412,1759227069833,-500.0,0.00019487,2]
[388515414,1759227069843,-500.0,0.00019487,2]
[388515415,1759227069853,-783.49,0.00019487,2]
[388515416,1759227069863,-1214.03,0.00019487,2]
[388515417,1759227069872,-500.0,0.00019487,2]
[388515418,1759227069883,-151.0,0.00019487,2]
[388515419,1759227069893,-151.0,0.00019487,2]
[388515420,1759227069903,-151.0,0.00019487,2]
[388515421,1759227069913,-151.0,0.00019487,2]
[388515422,1759227069922,-151.0,0.00019487,2]
[388515423,1759227069932,-159.085388,0.00019487,2]
[388515424,1759227069941,-153.849915,0.00019487,2]
[388515425,1759227069951,-263.423077,0.00019487,2]
[388515426,1759227069961,-526.0,0.00019487,2]
[388515427,1759227069972,-526.0,0.00019487,2]
[388515428,1759227069982,-151.0,0.00019487,2]
[388515429,1759227069991,-151.0,0.00019487,2]
[388515430,1759227070002,-190.134255,0.00019487,2]
[388515431,1759227070011,-7999.21,0.00019487,2]
[388515432,1759227070021,-154.024186,0.00019487,2]
[388515433,1759227070030,-159.732737,0.00019487,2]
[388515434,1759227070039,-500.0,0.00019487,2]
[388515435,1759227070049,-500.0,0.00019487,2]
[388515436,1759227070058,-500.0,0.00019487,2]
[388515437,1759227070068,-1483.93,0.00019487,2]
[388515443,1759227070562,-1483.93,0.00019487,2]
[388515445,1759227070573,-151.0,0.00019487,2]
[388515446,1759227070584,-151.0,0.00019487,2]
[388515447,1759227070594,-151.0,0.00019487,2]
[388515448,1759227070604,-151.0,0.00019487,2]
[388515449,1759227070613,-151.957759,0.00019487,2]
[388515450,1759227070623,-151.0,0.00019487,2]
[388515451,1759227070632,-151.0,0.00019487,2]
[388515452,1759227070642,-151.0,0.00019487,2]
[388515453,1759227070652,-267.83805,0.00019487,2]
[388515454,1759227070661,-151.0,0.00019487,2]
[388515455,1759227070671,-151.0,0.00019487,2]
[388515456,1759227070680,-5315.89,0.00019487,2]
[388515457,1759227070690,-151.0,0.00019487,2]
[388515458,1759227070700,-151.0,0.00019487,2]
[388515459,1759227070710,-500.0,0.00019487,2]
[388515460,1759227070719,-151.0,0.00019487,2]
[388515461,1759227070729,-151.0,0.00019487,2]
[388515462,1759227070739,-4481.29,0.00019487,2]
[388515463,1759227070748,-3585.42,0.00019487,2]
[388515464,1759227070759,-151.0,0.00019487,2]
[388515465,1759227070769,-151.0,0.00019487,2]
[388515466,1759227070779,-151.0,0.00019487,2]
[388515467,1759227070788,-169.320197,0.00019487,2]
[388515468,1759227070798,-500.0,0.00019487,2]
[388515469,1759227070808,-169.320197,0.00019487,2]
[388515470,1759227070820,-151.0,0.00019487,2]
[388515471,1759227070830,-169.320197,0.00019487,2]
[388515472,1759227070840,-169.320188,0.00019487,2]
[388515473,1759227070850,-3240.73,0.00019487,2]
[388515474,1759227070859,-254.822242,0.00019487,2]
[388515475,1759227070869,-254.822242,0.00019487,2]
[388515476,1759227070879,-3281.26,0.00019487,2]
[388515477,1759227070888,-254.822242,0.00019487,2]
[388515478,1759227070898,-254.822243,0.00019487,2]
[388515479,1759227070908,-3867.52,0.00019487,2]
[388515480,1759227070917,-834.5,0.00019487,2]
[388515481,1759227070927,-500.0,0.00019487,2]
[388515482,1759227070936,-691.29,0.00019487,2]
[388515483,1759227070945,-691.29,0.00019487,2]
[388515484,1759227070955,-691.29,0.00019487,2]
[388515485,1759227070964,-691.29,0.00019487,2]
[388515486,1759227070974,-691.29,0.00019487,2]
[388515487,1759227070983,-691.29,0.00019487,2]
[388515488,1759227070992,-151.0,0.00019487,2]
[388515489,1759227071002,-151.0,0.00019487,2]
[388515490,1759227071012,-3381.32,0.00019487,2]
[388515491,1759227071021,-151.0,0.00019487,2]
[388515492,1759227071031,-151.0,0.00019487,2]
[388515493,1759227071040,-151.0,0.00019487,2]
[388515494,1759227071050,-500.0,0.00019487,2]
[388515495,1759227071059,-151.0,0.00019487,2]
[388515496,1759227071070,-4679.43,0.00019487,2]
[388515497,1759227071079,-157.648966,0.00019487,2]
[388515498,1759227071089,-157.648966,0.00019487,2]
[388515499,1759227071098,-157.648966,0.00019487,2]
[388515500,1759227071107,-157.648965,0.00019487,2]
[388515501,1759227071118,-1075.99,0.00019487,2]
[388515502,1759227071127,-286.453146,0.00019487,2]
[388515503,1759227071137,-678.03,0.00019487,2]
[388515504,1759227071146,-286.453146,0.00019487,2]
[388515505,1759227071156,-162.097115,0.00019487,2]
[388515506,1759227071165,-3720.46,0.00019487,2]
[388515507,1759227071175,-286.453146,0.00019487,2]
[388515508,1759227071184,-286.453156,0.00019487,2]
[388515509,1759227071195,-3503.25,0.00019487,2]
[388515510,1759227071204,-740.41,0.00019487,2]
[388515511,1759227071213,-740.41,0.00019487,2]
[388515512,1759227071223,-740.41,0.00019487,2]
[388515513,1759227071232,-740.41,0.00019487,2]
[388515514,1759227071241,-740.41,0.00019487,2]
[388515515,1759227071251,-740.41,0.00019487,2]
[388515516,1759227071260,-1117.83,0.00019487,2]
[388515517,1759227071270,-500.0,0.00019487,2]
[388515518,1759227071279,-500.0,0.00019487,2]
[388515519,1759227071289,-4164.51,0.00019487,2]
[388515520,1759227071299,-500.0,0.00019487,2]
[388515521,1759227071308,-3547.75,0.00019487,2]
[388515522,1759227071318,-500.0,0.00019487,2]
[388515523,1759227071327,-2487.27,0.00019487,2]
[388515524,1759227071337,-2863.98,0.00019487,2]
[388515525,1759227071347,-500.0,0.00019487,2]
[388515526,1759227071356,-3049.2,0.00019487,2]
[388515527,1759227071366,-1026.04,0.00019487,2]
[388515528,1759227071379,-500.0,0.00019487,2]
[388515529,1759227071388,-2954.72,0.00019487,2]
[388515530,1759227071398,-2447.67,0.00019487,2]
[388515531,1759227071407,-500.0,0.00019487,2]
[388515532,1759227071418,-491.9209505,0.00019487,2]
[388515533,1759227071448,-297.86,0.00019487,2]
[388515534,1759227071460,-27.3090495,0.00019487,2]
[388515535,1759227071469,-3375.81080552,0.00019487,2]
[388515536,1759227071490,-702.18771264,0.00019487,2]
[388515537,1759227071502,-142.60148184,0.00019487,2]
[388515538,1759227071512,-1449.63,0.00019487,2]
[388515539,1759227071522,-893.52,0.00019487,2]
[388515540,1759227071531,-893.52,0.00019487,2]
[388515541,1759227071541,-2886.87,0.00019487,2]
[388515542,1759227071550,-500.0,0.00019487,2]
[388515543,1759227071560,-504.82,0.00019487,2]
[388515544,1759227071571,-1034.7,0.00019487,2]
[388515545,1759227071580,-139.61248373,0.00019487,2]
[388515546,1759227072422,-900.0,0.00018967,2]
[388515547,1759227072432,-150.0,0.00019384,2]
[388515548,1759227072442,-512.45,0.00019464,2]
[388515549,1759227072453,-546.29,0.00019464,2]
[388515550,1759227072464,-677.48,0.00019483,2]
[388515551,1759227072474,-500.0,0.00019483,2]
[388515552,1759227072483,-155.265988,0.00019483,2]
[388515553,1759227072493,-155.265988,0.00019483,2]
[388515554,1759227072502,-151.0,0.00019483,2]
[388515555,1759227072512,-8174.49,0.00019483,2]
[388515556,1759227072521,-155.265988,0.00019483,2]
[388515557,1759227072531,-151.0,0.00019483,2]
[388515558,1759227072540,-151.0,0.00019483,2]
[388515559,1759227072549,-155.265988,0.00019484,2]
[388515560,1759227072558,-155.265988,0.00019484,2]
[388515561,1759227072569,-155.265988,0.00019484,2]
[388515562,1759227072578,-155.265988,0.00019484,2]
[388515563,1759227072587,-646.83751627,0.00019487,2]
[388515564,1759227072597,-3106.92,0.00019487,2]
[388515565,1759227072607,-3106.92,0.00019487,2]
[388515566,1759227072618,-500.0,0.00019487,2]
[388515567,1759227072627,-500.0,0.00019487,2]
[388515568,1759227072637,-500.0,0.00019487,2]
[388515569,1759227072647,-318.32978473,0.00019487,2]
[388515570,1759227072657,-476.10119417,0.00019488,2]
[388515571,1759227072666,-1510.2,0.00019488,2]
[388515572,1759227072675,-507.4,0.00019488,2]
[388515573,1759227072685,-1110.68,0.00019488,2]
[388515574,1759227072695,-1315.7,0.00019488,2]
[388515575,1759227072704,-500.0,0.00019488,2]
[388515576,1759227072714,-500.0,0.00019488,2]
[388515577,1759227072723,-500.0,0.00019488,2]
[388515578,1759227072733,-609.11,0.00019488,2]
[388515579,1759227072743,-151.0,0.00019488,2]
[388515580,1759227072752,-293.59542,0.00019488,2]
[388515581,1759227072761,-432.45172734,0.00019488,2]
[388515582,1759227072770,-537.27,0.00019488,2]
[388515583,1759227072780,-1622.05,0.00019488,2]
[388515584,1759227072790,-3404.44,0.00019488,2]
[388515585,1759227072799,-1182.05,0.00019488,2]
[388515586,1759227072941,-733.35,0.00019488,2]
[388515587,1759227072952,-787.3,0.00019488,2]
[388515588,1759227072961,-300.13783778,0.00019488,2]
[388515589,1759227072971,-500.0,0.00019488,2]
[388515590,1759227072980,-501.49523581,0.00019488,2]
[388515591,1759227072989,-572.7,0.00019488,2]
[388515592,1759227073000,-2782.78,0.00019488,2]
[388515593,1759227073009,-500.0,0.00019488,2]
[388515594,1759227073018,-500.0,0.00019488,2]
[388515595,1759227073027,-500.0,0.00019488,2]
[388515596,1759227073036,-756.56062069,0.00019488,2]
[388515597,1759227073048,-462.03937931,0.00019488,2]
[388515598,1759227073057,-151.0,0.00019488,2]